{"text_format":"1","workbook":"xlsx","n_sheets":2,"sheets":["НКУ","остальные сборочки"],"not_rendered":{"charts":0,"images":0,"macros":1,"external_links":0,"defined_names":2,"comments":0,"pivot_tables":0},"unopened":[],"bounds":{"document_bytes":16777216,"sheet_cells":100000,"rows_first":2000,"rows_last":500,"rows_between":2000,"halvings":0,"cell_chars":16384,"cell_head_chars":4096},"cells_cut":0,"cells_raw":0,"read":"whole","date_system":"1900"}

{"sheet":"НКУ","index":0,"n_rows":25,"n_cols":23,"rows_kept":25,"cut":false,"hidden":false,"merged":[]}
["КодKKS","Помещение","категория (1 категория, 2 категория, без категории)","статус (первичная, вторичная, ПР, ЩПТ и др.)","Резервный столбец","Канал безопасности (1,2,3 каналы, СНЭ НЭ, СНЭ)","Панель\n (шкаф) НКУ-РУ","Блок НКУ-РУ",null,"Расположение автомат. выкл.","Тип блока","Марка авт. выкл.","Ном. ток авт.выкл","Кол-во полюсов","Кривая авт.выключателя","Контактор","Напряжение потребителя"," KKS присоединения","Присоединение\n (тип, марка токоприемника)","Присоединение для подачи заявки \n (тип, марка токоприемника)","№ чертежа"]
[1,2,3,4,5,6,7,8,9,10,11,12,13,14,15,16,17,18,19,20,21,22,23]
["\n4BRG01GE030","1UBR07 253","1 категория","ПР",null,"СНЭ НЭ","ПР",null,"да","Вводной",null,"Record  Plus\nFDY306D160GD","160A",3,null,null,380,"4BRG01GE030","Ввод питания  ","Ввод питания \n 4BRG01GE030","БЛ.4-UJA-31-ЧР-014, изм.2",{"$f":"CONCATENATE(A3,\"_\",G3,\"_\",H3,\"_\",J3,\"_\",K3,\"_\",L3,\"_\",M3,\"_\",N3,\"_\",O3,\"_\",P3,\"_\",Q3,\"_\",R3,\"_\",S3,\"_\",T3,\"_\",U3)","v":"\n4BRG01GE030_ПР__Вводной__Record  Plus\nFDY306D160GD_160A_3___380_4BRG01GE030_Ввод питания  _Ввод питания \n 4BRG01GE030_БЛ.4-UJA-31-ЧР-014, изм.2"},"\n4BRG01GE030_ПР__Вводной__Record  Plus\nFDY306D160GD_160A_3___380_4BRG01GE030_Ввод питания  _Ввод питания \n 4BRG01GE030_БЛ.4-UJA-31-ЧР-014, изм.2"]
["\n4BRG01GE030","1UBR07 253","1 категория","ПР",null,"СНЭ НЭ","ПР",1,"да",1,null,"G61B20","20A",1,"B",null,220,null,"Резерв","Резерв","БЛ.4-UJA-31-ЧР-014, изм.2",{"$f":"CONCATENATE(A4,\"_\",G4,\"_\",H4,\"_\",J4,\"_\",K4,\"_\",L4,\"_\",M4,\"_\",N4,\"_\",O4,\"_\",P4,\"_\",Q4,\"_\",R4,\"_\",S4,\"_\",T4,\"_\",U4)","v":"\n4BRG01GE030_ПР_1_1__G61B20_20A_1_B__220__Резерв_Резерв_БЛ.4-UJA-31-ЧР-014, изм.2"},"\n4BRG01GE030_ПР_1_1__G61B20_20A_1_B__220__Резерв_Резерв_БЛ.4-UJA-31-ЧР-014, изм.2"]
["\n4BRG01GE030","1UBR07 253","1 категория","ПР",null,"СНЭ НЭ","ПР",10,"да",10,null,"G61B06","6A",1,"B",null,220,"4CKK00GH012","Шкаф коммутаторов СКУ ЭО  4CKK00GH012","Шкаф коммутаторов СКУ ЭО  4CKK00GH012","БЛ.4-UJA-31-ЧР-014, изм.2","\n4BRG01GE030_ПР_10_10__G61B06_6A_1_B__220_4CKK00GH012_Шкаф коммутаторов СКУ ЭО  4CKK00GH012_Шкаф коммутаторов СКУ ЭО  4CKK00GH012_БЛ.4-UJA-31-ЧР-014, изм.2","\n4BRG01GE030_ПР_10_10__G61B06_6A_1_B__220_4CKK00GH012_Шкаф коммутаторов СКУ ЭО  4CKK00GH012_Шкаф коммутаторов СКУ ЭО  4CKK00GH012_БЛ.4-UJA-31-ЧР-014, изм.2"]
["\n4BRG01GE030","1UBR07 253","1 категория","ПР",null,"СНЭ НЭ","ПР",11,"да",11,null,"G61B10","10A",1,"B",null,220,"4DKL61","Автоматизированное рабочее место электроцеха с принтером 4DKL71","Автоматизированное рабочее место электроцеха с принтером 4DKL71 \n4DKL61","БЛ.4-UJA-31-ЧР-014, изм.2","\n4BRG01GE030_ПР_11_11__G61B10_10A_1_B__220_4DKL61_Автоматизированное рабочее место электроцеха с принтером 4DKL71_Автоматизированное рабочее место электроцеха с принтером 4DKL71 \n4DKL61_БЛ.4-UJA-31-ЧР-014, изм.2","\n4BRG01GE030_ПР_11_11__G61B10_10A_1_B__220_4DKL61_Автоматизированное рабочее место электроцеха с принтером 4DKL71_Автоматизированное рабочее место электроцеха с принтером 4DKL71 \n4DKL61_БЛ.4-UJA-31-ЧР-014, изм.2"]
["\n4BRG01GE030","1UBR07 253","1 категория","ПР",null,"СНЭ НЭ","ПР",12,"да",12,null,"G61B06","6A",1,"B","удалить",220,"4CKK00GH014","Шкаф коммутаторов  СКУ ЭО","Шкаф коммутаторов  СКУ ЭО","БЛ.4-UJA-31-ЧР-014, изм.2","\n4BRG01GE030_ПР_12_12__G61B06_6A_1_B_удалить_220_4CKK00GH014_Шкаф коммутаторов  СКУ ЭО_Шкаф коммутаторов  СКУ ЭО_БЛ.4-UJA-31-ЧР-014, изм.2","\n4BRG01GE030_ПР_12_12__G61B06_6A_1_B__220_4CKK00GH014_Шкаф коммутаторов  СКУ ЭО_Шкаф коммутаторов  СКУ ЭО_БЛ.4-UJA-31-ЧР-014, изм.2"]
["\n4BRG01GE030","1UBR07 253","1 категория","ПР",null,"СНЭ НЭ","ПР",2,"да","2/1",null,"G61B10","10A",1,"B",null,220,"4BFS00GE011","Шинка управления  ЕС силовой сборки 4BFS00GE010","Шинка управления  ЕС силовой сборки 4BFS00GE010 4BFS00GE011","БЛ.4-UJA-31-ЧР-014, изм.2","\n4BRG01GE030_ПР_2_2/1__G61B10_10A_1_B__220_4BFS00GE011_Шинка управления  ЕС силовой сборки 4BFS00GE010_Шинка управления  ЕС силовой сборки 4BFS00GE010 4BFS00GE011_БЛ.4-UJA-31-ЧР-014, изм.2","\n4BRG01GE030_ПР_2_2/1__G61B10_10A_1_B__220_4BFS00GE011_Шинка управления  ЕС силовой сборки 4BFS00GE010_Шинка управления  ЕС силовой сборки 4BFS00GE010 4BFS00GE011_БЛ.4-UJA-31-ЧР-014, изм.2"]
["\n4BRG01GE030","1UBR07 253","1 категория","ПР",null,"СНЭ НЭ","ПР",2,"да","2/2",null,"G61B10",null,null,null,null,220,"4BFS00GE021","Шинка управления  ЕС силовой сборки 4BFS00GE020","Шинка управления  ЕС силовой сборки 4BFS00GE020 4BFS00GE021","БЛ.4-UJA-31-ЧР-014, изм.2","\n4BRG01GE030_ПР_2_2/2__G61B10_____220_4BFS00GE021_Шинка управления  ЕС силовой сборки 4BFS00GE020_Шинка управления  ЕС силовой сборки 4BFS00GE020 4BFS00GE021_БЛ.4-UJA-31-ЧР-014, изм.2","\n4BRG01GE030_ПР_2_2/2__G61B10_____220_4BFS00GE021_Шинка управления  ЕС силовой сборки 4BFS00GE020_Шинка управления  ЕС силовой сборки 4BFS00GE020 4BFS00GE021_БЛ.4-UJA-31-ЧР-014, изм.2"]
["\n4BRG01GE030","1UBR07 253","1 категория","ПР",null,"СНЭ НЭ","ПР",2,"да","2/3",null,"G61B10",null,null,null,null,220,"4BFS00GE031","Шинка управления  ЕС силовой сборки 4BFS00GE030","Шинка управления  ЕС силовой сборки 4BFS00GE030 4BFS00GE031","БЛ.4-UJA-31-ЧР-014, изм.2","\n4BRG01GE030_ПР_2_2/3__G61B10_____220_4BFS00GE031_Шинка управления  ЕС силовой сборки 4BFS00GE030_Шинка управления  ЕС силовой сборки 4BFS00GE030 4BFS00GE031_БЛ.4-UJA-31-ЧР-014, изм.2","\n4BRG01GE030_ПР_2_2/3__G61B10_____220_4BFS00GE031_Шинка управления  ЕС силовой сборки 4BFS00GE030_Шинка управления  ЕС силовой сборки 4BFS00GE030 4BFS00GE031_БЛ.4-UJA-31-ЧР-014, изм.2"]
["\n4BRG01GE030","1UBR07 253","1 категория","ПР",null,"СНЭ НЭ","Шинка управления  ЕС силовой сборки 4BFS00GE030","Шинка управления  ЕС силовой сборки 4BFS00GE030 4BFS00GE031","БЛ.4-UJA-31-ЧР-014, изм.2","2/4",null,"G61B10",null,null,null,"удалить",220,"4BFS00GE041","Шинка управления  ЕС силовой сборки 4BFS00GE040","Шинка управления  ЕС силовой сборки 4BFS00GE040 4BFS00GE041","БЛ.4-UJA-31-ЧР-014, изм.2","\n4BRG01GE030_Шинка управления  ЕС силовой сборки 4BFS00GE030_Шинка управления  ЕС силовой сборки 4BFS00GE030 4BFS00GE031_2/4__G61B10____удалить_220_4BFS00GE041_Шинка управления  ЕС силовой сборки 4BFS00GE040_Шинка управления  ЕС силовой сборки 4BFS00GE040 4BFS00GE041_БЛ.4-UJA-31-ЧР-014, изм.2","\n4BRG01GE030_Шинка управления  ЕС силовой сборки 4BFS00GE030_Шинка управления  ЕС силовой сборки 4BFS00GE030 4BFS00GE031_2/4__G61B10_____220_4BFS00GE041_Шинка управления  ЕС силовой сборки 4BFS00GE040_Шинка управления  ЕС силовой сборки 4BFS00GE040 4BFS00GE041_БЛ.4-UJA-31-ЧР-014, изм.2"]
["\n4BRG01GE030","1UBR07 253","1 категория","ПР",null,"СНЭ НЭ","ПР",2,"да","2/5",null,"G61B10",null,null,null,null,220,"4BFS00GE051","Шинка управления  ЕС силовой сборки 4BFS00GE050","Шинка управления  ЕС силовой сборки 4BFS00GE050  4BFS00GE051","БЛ.4-UJA-31-ЧР-014, изм.2","\n4BRG01GE030_ПР_2_2/5__G61B10_____220_4BFS00GE051_Шинка управления  ЕС силовой сборки 4BFS00GE050_Шинка управления  ЕС силовой сборки 4BFS00GE050  4BFS00GE051_БЛ.4-UJA-31-ЧР-014, изм.2","\n4BRG01GE030_ПР_2_2/5__G61B10_____220_4BFS00GE051_Шинка управления  ЕС силовой сборки 4BFS00GE050_Шинка управления  ЕС силовой сборки 4BFS00GE050  4BFS00GE051_БЛ.4-UJA-31-ЧР-014, изм.2"]
["\n4BRG01GE030","1UBR07 253","1 категория","ПР",null,"СНЭ НЭ","ПР",3,"да",3,null,"G61B20","20A",1,"B",null,null,null,"Резерв","Резерв","БЛ.4-UJA-31-ЧР-014, изм.2","\n4BRG01GE030_ПР_3_3__G61B20_20A_1_B____Резерв_Резерв_БЛ.4-UJA-31-ЧР-014, изм.2","\n4BRG01GE030_ПР_3_3__G61B20_20A_1_B____Резерв_Резерв_БЛ.4-UJA-31-ЧР-014, изм.2"]
["\n4BRG01GE030","1UBR07 253","1 категория","ПР",null,"СНЭ НЭ","ПР",4,"да","4/1",null,"G61C04","4A",1,"C",null,220,"4BFS00GE101","Шинка управления  ЕС силовой сборки 4BFS00GE100","Шинка управления  ЕС силовой сборки 4BFS00GE100  4BFS00GE101","БЛ.4-UJA-31-ЧР-014, изм.2","\n4BRG01GE030_ПР_4_4/1__G61C04_4A_1_C__220_4BFS00GE101_Шинка управления  ЕС силовой сборки 4BFS00GE100_Шинка управления  ЕС силовой сборки 4BFS00GE100  4BFS00GE101_БЛ.4-UJA-31-ЧР-014, изм.2","\n4BRG01GE030_ПР_4_4/1__G61C04_4A_1_C__220_4BFS00GE101_Шинка управления  ЕС силовой сборки 4BFS00GE100_Шинка управления  ЕС силовой сборки 4BFS00GE100  4BFS00GE101_БЛ.4-UJA-31-ЧР-014, изм.2"]
["\n4BRG01GE030","1UBR07 253","1 категория","ПР",null,"СНЭ НЭ","ПР",4,"да","4/2",null,"G61C04",null,null,null,null,220,"4BFS00GE111","Шинка управления  ЕС силовой сборки 4BFS00GE110","Шинка управления  ЕС силовой сборки 4BFS00GE110  4BFS00GE111","БЛ.4-UJA-31-ЧР-014, изм.2","\n4BRG01GE030_ПР_4_4/2__G61C04_____220_4BFS00GE111_Шинка управления  ЕС силовой сборки 4BFS00GE110_Шинка управления  ЕС силовой сборки 4BFS00GE110  4BFS00GE111_БЛ.4-UJA-31-ЧР-014, изм.2","\n4BRG01GE030_ПР_4_4/2__G61C04_____220_4BFS00GE111_Шинка управления  ЕС силовой сборки 4BFS00GE110_Шинка управления  ЕС силовой сборки 4BFS00GE110  4BFS00GE111_БЛ.4-UJA-31-ЧР-014, изм.2"]
["\n4BRG01GE030","1UBR07 253","1 категория","ПР",null,"СНЭ НЭ","ПР",5,"да","5/1",null,"G61B06","6A",1,"B",null,220,"4BFS00GE161","Шинка управления  ЕС силовой сборки 4BFS00GE160","Шинка управления  ЕС силовой сборки 4BFS00GE160  4BFS00GE161","БЛ.4-UJA-31-ЧР-014, изм.2","\n4BRG01GE030_ПР_5_5/1__G61B06_6A_1_B__220_4BFS00GE161_Шинка управления  ЕС силовой сборки 4BFS00GE160_Шинка управления  ЕС силовой сборки 4BFS00GE160  4BFS00GE161_БЛ.4-UJA-31-ЧР-014, изм.2","\n4BRG01GE030_ПР_5_5/1__G61B06_6A_1_B__220_4BFS00GE161_Шинка управления  ЕС силовой сборки 4BFS00GE160_Шинка управления  ЕС силовой сборки 4BFS00GE160  4BFS00GE161_БЛ.4-UJA-31-ЧР-014, изм.2"]
["\n4BRG01GE030","1UBR07 253","1 категория","ПР",null,"СНЭ НЭ","ПР",5,"да","5/2",null,"G61B06",null,null,null,"удалить",null,"4BFS00GE171","Шинка управления  ЕС силовой сборки 4BFS00GE170","Шинка управления  ЕС силовой сборки 4BFS00GE170  4BFS00GE171","БЛ.4-UJA-31-ЧР-014, изм.2","\n4BRG01GE030_ПР_5_5/2__G61B06____удалить__4BFS00GE171_Шинка управления  ЕС силовой сборки 4BFS00GE170_Шинка управления  ЕС силовой сборки 4BFS00GE170  4BFS00GE171_БЛ.4-UJA-31-ЧР-014, изм.2","\n4BRG01GE030_ПР_5_5/2__G61B06______4BFS00GE171_Шинка управления  ЕС силовой сборки 4BFS00GE170_Шинка управления  ЕС силовой сборки 4BFS00GE170  4BFS00GE171_БЛ.4-UJA-31-ЧР-014, изм.2"]
["\n4BRG01GE030","1UBR07 253","1 категория","ПР",null,"СНЭ НЭ","ПР",5,"да","5/3",null,"G61B06",null,null,null,null,null,"4BFS00GE181","Шинка управления  ЕС силовой сборки 4BFS00GE180","Шинка управления  ЕС силовой сборки 4BFS00GE180  4BFS00GE181","БЛ.4-UJA-31-ЧР-014, изм.2","\n4BRG01GE030_ПР_5_5/3__G61B06______4BFS00GE181_Шинка управления  ЕС силовой сборки 4BFS00GE180_Шинка управления  ЕС силовой сборки 4BFS00GE180  4BFS00GE181_БЛ.4-UJA-31-ЧР-014, изм.2","\n4BRG01GE030_ПР_5_5/3__G61B06______4BFS00GE181_Шинка управления  ЕС силовой сборки 4BFS00GE180_Шинка управления  ЕС силовой сборки 4BFS00GE180  4BFS00GE181_БЛ.4-UJA-31-ЧР-014, изм.2"]
["\n4BRG01GE030","1UBR07 253","1 категория","ПР",null,"СНЭ НЭ","ПР",5,"да","5/4",null,"G61B06",null,null,null,null,null,"4BFS00GE191","Шинка управления  ЕС силовой сборки 4BFS00GE190","Шинка управления  ЕС силовой сборки 4BFS00GE190  4BFS00GE191","БЛ.4-UJA-31-ЧР-014, изм.2","\n4BRG01GE030_ПР_5_5/4__G61B06______4BFS00GE191_Шинка управления  ЕС силовой сборки 4BFS00GE190_Шинка управления  ЕС силовой сборки 4BFS00GE190  4BFS00GE191_БЛ.4-UJA-31-ЧР-014, изм.2","\n4BRG01GE030_ПР_5_5/4__G61B06______4BFS00GE191_Шинка управления  ЕС силовой сборки 4BFS00GE190_Шинка управления  ЕС силовой сборки 4BFS00GE190  4BFS00GE191_БЛ.4-UJA-31-ЧР-014, изм.2"]
["\n4BRG01GE030","1UBR07 253","1 категория","ПР",null,"СНЭ НЭ","ПР",6,"да",6,null,null,null,null,null,null,null,"4BMS00GE021","Шинка управления  ЕС силовой сборки 4BMS00GE020","Шинка управления  ЕС силовой сборки 4BMS00GE020  4BMS00GE021","БЛ.4-UJA-31-ЧР-014, изм.2","\n4BRG01GE030_ПР_6_6________4BMS00GE021_Шинка управления  ЕС силовой сборки 4BMS00GE020_Шинка управления  ЕС силовой сборки 4BMS00GE020  4BMS00GE021_БЛ.4-UJA-31-ЧР-014, изм.2","\n4BRG01GE030_ПР_6_6________4BMS00GE021_Шинка управления  ЕС силовой сборки 4BMS00GE020_Шинка управления  ЕС силовой сборки 4BMS00GE020  4BMS00GE021_БЛ.4-UJA-31-ЧР-014, изм.2"]
["\n4BRG01GE030","1UBR07 253","1 категория","ПР",null,"СНЭ НЭ","ПР",6,"да",6,null,"G61C04","4A",1,"C","удалить",220,"4BMS00GE011","Шинка управления  ЕС силовой сборки 4BMS00GE010","Шинка управления  ЕС силовой сборки 4BMS00GE010  4BMS00GE011","БЛ.4-UJA-31-ЧР-014, изм.2","\n4BRG01GE030_ПР_6_6__G61C04_4A_1_C_удалить_220_4BMS00GE011_Шинка управления  ЕС силовой сборки 4BMS00GE010_Шинка управления  ЕС силовой сборки 4BMS00GE010  4BMS00GE011_БЛ.4-UJA-31-ЧР-014, изм.2","\n4BRG01GE030_ПР_6_6__G61C04_4A_1_C__220_4BMS00GE011_Шинка управления  ЕС силовой сборки 4BMS00GE010_Шинка управления  ЕС силовой сборки 4BMS00GE010  4BMS00GE011_БЛ.4-UJA-31-ЧР-014, изм.2"]
["\n4BRG01GE030","1UBR07 253","1 категория","ПР",null,"СНЭ НЭ","ПР",7,"да",7,null,"G61C04","4A",1,"C",null,220,"4BFN01","Шинка управления ЕС секции  4BFN","Шинка управления ЕС секции  4BFN \n 4BFN01","БЛ.4-UJA-31-ЧР-014, изм.2","\n4BRG01GE030_ПР_7_7__G61C04_4A_1_C__220_4BFN01_Шинка управления ЕС секции  4BFN_Шинка управления ЕС секции  4BFN \n 4BFN01_БЛ.4-UJA-31-ЧР-014, изм.2","\n4BRG01GE030_ПР_7_7__G61C04_4A_1_C__220_4BFN01_Шинка управления ЕС секции  4BFN_Шинка управления ЕС секции  4BFN \n 4BFN01_БЛ.4-UJA-31-ЧР-014, изм.2"]
["\n4BRG01GE030","1UBR07 253","1 категория","ПР",null,"СНЭ НЭ","ПР",8,"да",8,null,"G61C04","4A",1,"C",null,220,"4BFQ01","Шинка управления ЕС секции  4BFQ","Шинка управления ЕС секции  4BFQ  \n4BFN01","БЛ.4-UJA-31-ЧР-014, изм.2","\n4BRG01GE030_ПР_8_8__G61C04_4A_1_C__220_4BFQ01_Шинка управления ЕС секции  4BFQ_Шинка управления ЕС секции  4BFQ  \n4BFN01_БЛ.4-UJA-31-ЧР-014, изм.2","\n4BRG01GE030_ПР_8_8__G61C04_4A_1_C__220_4BFQ01_Шинка управления ЕС секции  4BFQ_Шинка управления ЕС секции  4BFQ  \n4BFN01_БЛ.4-UJA-31-ЧР-014, изм.2"]
["\n4BRG01GE030","1UBR07 253","1 категория","ПР",null,"СНЭ НЭ","ПР",9,"да","9/1",null,"G61C04","4A",1,"C",null,220,"4BMS00GE031","Шинка управления  ЕС силовой сборки 4BMS00GE030","Шинка управления  ЕС силовой сборки 4BMS00GE030  4BMS00GE031","БЛ.4-UJA-31-ЧР-014, изм.2","\n4BRG01GE030_ПР_9_9/1__G61C04_4A_1_C__220_4BMS00GE031_Шинка управления  ЕС силовой сборки 4BMS00GE030_Шинка управления  ЕС силовой сборки 4BMS00GE030  4BMS00GE031_БЛ.4-UJA-31-ЧР-014, изм.2","\n4BRG01GE030_ПР_9_9/1__G61C04_4A_1_C__220_4BMS00GE031_Шинка управления  ЕС силовой сборки 4BMS00GE030_Шинка управления  ЕС силовой сборки 4BMS00GE030  4BMS00GE031_БЛ.4-UJA-31-ЧР-014, изм.2"]
["\n4BRG01GE030","1UBR07 253","1 категория","ПР",null,"СНЭ НЭ","ПР",9,"да","9/2",null,"G61C04",null,null,null,null,null,"4BMS00GE041","Шинка управления  ЕС силовой сборки 4BMS00GE040","Шинка управления  ЕС силовой сборки 4BMS00GE040 4BMS00GE041","БЛ.4-UJA-31-ЧР-014, изм.2","\n4BRG01GE030_ПР_9_9/2__G61C04______4BMS00GE041_Шинка управления  ЕС силовой сборки 4BMS00GE040_Шинка управления  ЕС силовой сборки 4BMS00GE040 4BMS00GE041_БЛ.4-UJA-31-ЧР-014, изм.2","\n4BRG01GE030_ПР_9_9/2__G61C04______4BMS00GE041_Шинка управления  ЕС силовой сборки 4BMS00GE040_Шинка управления  ЕС силовой сборки 4BMS00GE040 4BMS00GE041_БЛ.4-UJA-31-ЧР-014, изм.2"]

{"sheet":"остальные сборочки","index":1,"n_rows":25,"n_cols":32,"rows_kept":25,"cut":false,"hidden":false,"merged":[]}
["КодKKS","Помещение",null,null,"Резервный столбец",null,"Панель\n (шкаф) НКУ-РУ","Блок НКУ-РУ",null,"Расположение автомат. выкл.","Тип блока","Марка авт. выкл.","Ном. ток авт.выкл","Кол-во полюсов","Кривая авт.выключателя","Контактор","Напряжение потребителя"," KKS присоединения","Присоединение\n (тип, марка токоприемника)","Присоединение для подачи заявки \n (тип, марка токоприемника)","№ чертежа"]
[1,2,3,4,5,6,7,8,9,10,11,12,13,14,15,16,17,18,19,20,21,22,23,24,25,26,27,28,29,30,31,32]
["\n4BRG01GE030","1UBR07 253",null,null,null,null,"ПР",null,null,"Вводной",null,"Record  Plus\nFDY306D160GD","160A",3,null,null,380,"4BRG01GE030","Ввод питания  ","Ввод питания \n 4BRG01GE030","БЛ.4-UJA-31-ЧР-014, изм.2",{"$f":"CONCATENATE(A3,\"_\",G3,\"_\",H3,\"_\",J3,\"_\",K3,\"_\",L3,\"_\",M3,\"_\",N3,\"_\",O3,\"_\",P3,\"_\",Q3,\"_\",R3,\"_\",S3,\"_\",T3,\"_\",U3)","v":"\n4BRG01GE030_ПР__Вводной__Record  Plus\nFDY306D160GD_160A_3___380_4BRG01GE030_Ввод питания  _Ввод питания \n 4BRG01GE030_БЛ.4-UJA-31-ЧР-014, изм.2"},"\n4BRG01GE030_ПР__Вводной__Record  Plus\nFDY306D160GD_160A_3___380_4BRG01GE030_Ввод питания  _Ввод питания \n 4BRG01GE030_БЛ.4-UJA-31-ЧР-014, изм.2"]
["\n4BRG01GE030","1UBR07 253",null,null,null,null,"ПР",1,null,1,null,"G61B20","20A",1,"B",null,220,null,"Резерв","Резерв","БЛ.4-UJA-31-ЧР-014, изм.2",{"$f":"CONCATENATE(A4,\"_\",G4,\"_\",H4,\"_\",J4,\"_\",K4,\"_\",L4,\"_\",M4,\"_\",N4,\"_\",O4,\"_\",P4,\"_\",Q4,\"_\",R4,\"_\",S4,\"_\",T4,\"_\",U4)","v":"\n4BRG01GE030_ПР_1_1__G61B20_20A_1_B__220__Резерв_Резерв_БЛ.4-UJA-31-ЧР-014, изм.2"},"\n4BRG01GE030_ПР_1_1__G61B20_20A_1_B__220__Резерв_Резерв_БЛ.4-UJA-31-ЧР-014, изм.2"]
["\n4BRG01GE030","1UBR07 253",null,null,null,null,"ПР",10,null,10,null,"G61B06","6A",1,"B",null,220,"4CKK00GH012","Шкаф коммутаторов СКУ ЭО  4CKK00GH012","Шкаф коммутаторов СКУ ЭО  4CKK00GH012","БЛ.4-UJA-31-ЧР-014, изм.2","\n4BRG01GE030_ПР_10_10__G61B06_6A_1_B__220_4CKK00GH012_Шкаф коммутаторов СКУ ЭО  4CKK00GH012_Шкаф коммутаторов СКУ ЭО  4CKK00GH012_БЛ.4-UJA-31-ЧР-014, изм.2","\n4BRG01GE030_ПР_10_10__G61B06_6A_1_B__220_4CKK00GH012_Шкаф коммутаторов СКУ ЭО  4CKK00GH012_Шкаф коммутаторов СКУ ЭО  4CKK00GH012_БЛ.4-UJA-31-ЧР-014, изм.2"]
["\n4BRG01GE030","1UBR07 253",null,null,null,null,"ПР",11,null,11,null,"G61B10","10A",1,"B",null,220,"4DKL61","Автоматизированное рабочее место электроцеха с принтером 4DKL71","Автоматизированное рабочее место электроцеха с принтером 4DKL71 \n4DKL61","БЛ.4-UJA-31-ЧР-014, изм.2","\n4BRG01GE030_ПР_11_11__G61B10_10A_1_B__220_4DKL61_Автоматизированное рабочее место электроцеха с принтером 4DKL71_Автоматизированное рабочее место электроцеха с принтером 4DKL71 \n4DKL61_БЛ.4-UJA-31-ЧР-014, изм.2","\n4BRG01GE030_ПР_11_11__G61B10_10A_1_B__220_4DKL61_Автоматизированное рабочее место электроцеха с принтером 4DKL71_Автоматизированное рабочее место электроцеха с принтером 4DKL71 \n4DKL61_БЛ.4-UJA-31-ЧР-014, изм.2"]
["\n4BRG01GE030","1UBR07 253",null,null,null,null,"ПР",12,null,12,null,"G61B06","6A",1,"B",null,220,"4CKK00GH014","Шкаф коммутаторов  СКУ ЭО","Шкаф коммутаторов  СКУ ЭО","БЛ.4-UJA-31-ЧР-014, изм.2","\n4BRG01GE030_ПР_12_12__G61B06_6A_1_B__220_4CKK00GH014_Шкаф коммутаторов  СКУ ЭО_Шкаф коммутаторов  СКУ ЭО_БЛ.4-UJA-31-ЧР-014, изм.2","\n4BRG01GE030_ПР_12_12__G61B06_6A_1_B__220_4CKK00GH014_Шкаф коммутаторов  СКУ ЭО_Шкаф коммутаторов  СКУ ЭО_БЛ.4-UJA-31-ЧР-014, изм.2"]
["\n4BRG01GE030","1UBR07 253",null,null,null,null,"ПР",2,null,"2/1",null,"G61B10","10A",1,"B",null,220,"4BFS00GE011","Шинка управления  ЕС силовой сборки 4BFS00GE010","Шинка управления  ЕС силовой сборки 4BFS00GE010 4BFS00GE011","БЛ.4-UJA-31-ЧР-014, изм.2","\n4BRG01GE030_ПР_2_2/1__G61B10_10A_1_B__220_4BFS00GE011_Шинка управления  ЕС силовой сборки 4BFS00GE010_Шинка управления  ЕС силовой сборки 4BFS00GE010 4BFS00GE011_БЛ.4-UJA-31-ЧР-014, изм.2","\n4BRG01GE030_ПР_2_2/1__G61B10_10A_1_B__220_4BFS00GE011_Шинка управления  ЕС силовой сборки 4BFS00GE010_Шинка управления  ЕС силовой сборки 4BFS00GE010 4BFS00GE011_БЛ.4-UJA-31-ЧР-014, изм.2"]
["\n4BRG01GE030","1UBR07 253",null,null,null,null,"ПР",2,null,"2/2",null,"G61B10",null,null,null,null,220,"4BFS00GE021","Шинка управления  ЕС силовой сборки 4BFS00GE020","Шинка управления  ЕС силовой сборки 4BFS00GE020 4BFS00GE021","БЛ.4-UJA-31-ЧР-014, изм.2","\n4BRG01GE030_ПР_2_2/2__G61B10_____220_4BFS00GE021_Шинка управления  ЕС силовой сборки 4BFS00GE020_Шинка управления  ЕС силовой сборки 4BFS00GE020 4BFS00GE021_БЛ.4-UJA-31-ЧР-014, изм.2","\n4BRG01GE030_ПР_2_2/2__G61B10_____220_4BFS00GE021_Шинка управления  ЕС силовой сборки 4BFS00GE020_Шинка управления  ЕС силовой сборки 4BFS00GE020 4BFS00GE021_БЛ.4-UJA-31-ЧР-014, изм.2"]
["\n4BRG01GE030","1UBR07 253",null,null,null,null,"ПР",2,null,"2/3",null,"G61B10",null,null,null,null,220,"4BFS00GE031","Шинка управления  ЕС силовой сборки 4BFS00GE030","Шинка управления  ЕС силовой сборки 4BFS00GE030 4BFS00GE031","БЛ.4-UJA-31-ЧР-014, изм.2","\n4BRG01GE030_ПР_2_2/3__G61B10_____220_4BFS00GE031_Шинка управления  ЕС силовой сборки 4BFS00GE030_Шинка управления  ЕС силовой сборки 4BFS00GE030 4BFS00GE031_БЛ.4-UJA-31-ЧР-014, изм.2","\n4BRG01GE030_ПР_2_2/3__G61B10_____220_4BFS00GE031_Шинка управления  ЕС силовой сборки 4BFS00GE030_Шинка управления  ЕС силовой сборки 4BFS00GE030 4BFS00GE031_БЛ.4-UJA-31-ЧР-014, изм.2"]
["\n4BRG01GE030","1UBR07 253",null,null,null,null,"ПР",2,null,"2/4",null,"G61B10",null,null,null,null,220,"4BFS00GE041","Шинка управления  ЕС силовой сборки 4BFS00GE040","Шинка управления  ЕС силовой сборки 4BFS00GE040 4BFS00GE041","БЛ.4-UJA-31-ЧР-014, изм.2","\n4BRG01GE030_ПР_2_2/4__G61B10_____220_4BFS00GE041_Шинка управления  ЕС силовой сборки 4BFS00GE040_Шинка управления  ЕС силовой сборки 4BFS00GE040 4BFS00GE041_БЛ.4-UJA-31-ЧР-014, изм.2","\n4BRG01GE030_ПР_2_2/4__G61B10_____220_4BFS00GE041_Шинка управления  ЕС силовой сборки 4BFS00GE040_Шинка управления  ЕС силовой сборки 4BFS00GE040 4BFS00GE041_БЛ.4-UJA-31-ЧР-014, изм.2"]
["\n4BRG01GE030","1UBR07 253",null,null,null,null,"ПР",2,null,"2/5",null,"G61B10",null,null,null,null,220,"4BFS00GE051","Шинка управления  ЕС силовой сборки 4BFS00GE050","Шинка управления  ЕС силовой сборки 4BFS00GE050  4BFS00GE051","БЛ.4-UJA-31-ЧР-014, изм.2","\n4BRG01GE030_ПР_2_2/5__G61B10_____220_4BFS00GE051_Шинка управления  ЕС силовой сборки 4BFS00GE050_Шинка управления  ЕС силовой сборки 4BFS00GE050  4BFS00GE051_БЛ.4-UJA-31-ЧР-014, изм.2","\n4BRG01GE030_ПР_2_2/5__G61B10_____220_4BFS00GE051_Шинка управления  ЕС силовой сборки 4BFS00GE050_Шинка управления  ЕС силовой сборки 4BFS00GE050  4BFS00GE051_БЛ.4-UJA-31-ЧР-014, изм.2"]
["\n4BRG01GE030","1UBR07 253",null,null,null,null,"ПР",3,null,3,null,"G61B20","20A",1,"B",null,null,null,"Резерв","Резерв","БЛ.4-UJA-31-ЧР-014, изм.2","\n4BRG01GE030_ПР_3_3__G61B20_20A_1_B____Резерв_Резерв_БЛ.4-UJA-31-ЧР-014, изм.2","\n4BRG01GE030_ПР_3_3__G61B20_20A_1_B____Резерв_Резерв_БЛ.4-UJA-31-ЧР-014, изм.2"]
["\n4BRG01GE030","1UBR07 253",null,null,null,null,"ПР",4,null,"4/1",null,"G61C04","4A",1,"C",null,220,"4BFS00GE101","Шинка управления  ЕС силовой сборки 4BFS00GE100","Шинка управления  ЕС силовой сборки 4BFS00GE100  4BFS00GE101","БЛ.4-UJA-31-ЧР-014, изм.2","\n4BRG01GE030_ПР_4_4/1__G61C04_4A_1_C__220_4BFS00GE101_Шинка управления  ЕС силовой сборки 4BFS00GE100_Шинка управления  ЕС силовой сборки 4BFS00GE100  4BFS00GE101_БЛ.4-UJA-31-ЧР-014, изм.2","\n4BRG01GE030_ПР_4_4/1__G61C04_4A_1_C__220_4BFS00GE101_Шинка управления  ЕС силовой сборки 4BFS00GE100_Шинка управления  ЕС силовой сборки 4BFS00GE100  4BFS00GE101_БЛ.4-UJA-31-ЧР-014, изм.2"]
["\n4BRG01GE030","1UBR07 253",null,null,null,null,"ПР",4,null,"4/2",null,"G61C04",null,null,null,null,220,"4BFS00GE111","Шинка управления  ЕС силовой сборки 4BFS00GE110","Шинка управления  ЕС силовой сборки 4BFS00GE110  4BFS00GE111","БЛ.4-UJA-31-ЧР-014, изм.2","\n4BRG01GE030_ПР_4_4/2__G61C04_____220_4BFS00GE111_Шинка управления  ЕС силовой сборки 4BFS00GE110_Шинка управления  ЕС силовой сборки 4BFS00GE110  4BFS00GE111_БЛ.4-UJA-31-ЧР-014, изм.2","\n4BRG01GE030_ПР_4_4/2__G61C04_____220_4BFS00GE111_Шинка управления  ЕС силовой сборки 4BFS00GE110_Шинка управления  ЕС силовой сборки 4BFS00GE110  4BFS00GE111_БЛ.4-UJA-31-ЧР-014, изм.2"]
["\n4BRG01GE030","1UBR07 253",null,null,null,null,"ПР",5,null,"5/1",null,"G61B06","6A",1,"B",null,220,"4BFS00GE161","Шинка управления  ЕС силовой сборки 4BFS00GE160","Шинка управления  ЕС силовой сборки 4BFS00GE160  4BFS00GE161","БЛ.4-UJA-31-ЧР-014, изм.2","\n4BRG01GE030_ПР_5_5/1__G61B06_6A_1_B__220_4BFS00GE161_Шинка управления  ЕС силовой сборки 4BFS00GE160_Шинка управления  ЕС силовой сборки 4BFS00GE160  4BFS00GE161_БЛ.4-UJA-31-ЧР-014, изм.2","\n4BRG01GE030_ПР_5_5/1__G61B06_6A_1_B__220_4BFS00GE161_Шинка управления  ЕС силовой сборки 4BFS00GE160_Шинка управления  ЕС силовой сборки 4BFS00GE160  4BFS00GE161_БЛ.4-UJA-31-ЧР-014, изм.2"]
["\n4BRG01GE030","1UBR07 253",null,null,null,null,"ПР",5,null,"5/2",null,"G61B06",null,null,null,null,null,"4BFS00GE171","Шинка управления  ЕС силовой сборки 4BFS00GE170","Шинка управления  ЕС силовой сборки 4BFS00GE170  4BFS00GE171","БЛ.4-UJA-31-ЧР-014, изм.2","\n4BRG01GE030_ПР_5_5/2__G61B06______4BFS00GE171_Шинка управления  ЕС силовой сборки 4BFS00GE170_Шинка управления  ЕС силовой сборки 4BFS00GE170  4BFS00GE171_БЛ.4-UJA-31-ЧР-014, изм.2","\n4BRG01GE030_ПР_5_5/2__G61B06______4BFS00GE171_Шинка управления  ЕС силовой сборки 4BFS00GE170_Шинка управления  ЕС силовой сборки 4BFS00GE170  4BFS00GE171_БЛ.4-UJA-31-ЧР-014, изм.2"]
["\n4BRG01GE030","1UBR07 253",null,null,null,null,"ПР",5,null,"5/3",null,"G61B06",null,null,null,null,null,"4BFS00GE181","Шинка управления  ЕС силовой сборки 4BFS00GE180","Шинка управления  ЕС силовой сборки 4BFS00GE180  4BFS00GE181","БЛ.4-UJA-31-ЧР-014, изм.2","\n4BRG01GE030_ПР_5_5/3__G61B06______4BFS00GE181_Шинка управления  ЕС силовой сборки 4BFS00GE180_Шинка управления  ЕС силовой сборки 4BFS00GE180  4BFS00GE181_БЛ.4-UJA-31-ЧР-014, изм.2","\n4BRG01GE030_ПР_5_5/3__G61B06______4BFS00GE181_Шинка управления  ЕС силовой сборки 4BFS00GE180_Шинка управления  ЕС силовой сборки 4BFS00GE180  4BFS00GE181_БЛ.4-UJA-31-ЧР-014, изм.2"]
["\n4BRG01GE030","1UBR07 253",null,null,null,null,"ПР",5,null,"5/4",null,"G61B06",null,null,null,null,null,"4BFS00GE191","Шинка управления  ЕС силовой сборки 4BFS00GE190","Шинка управления  ЕС силовой сборки 4BFS00GE190  4BFS00GE191","БЛ.4-UJA-31-ЧР-014, изм.2","\n4BRG01GE030_ПР_5_5/4__G61B06______4BFS00GE191_Шинка управления  ЕС силовой сборки 4BFS00GE190_Шинка управления  ЕС силовой сборки 4BFS00GE190  4BFS00GE191_БЛ.4-UJA-31-ЧР-014, изм.2","\n4BRG01GE030_ПР_5_5/4__G61B06______4BFS00GE191_Шинка управления  ЕС силовой сборки 4BFS00GE190_Шинка управления  ЕС силовой сборки 4BFS00GE190  4BFS00GE191_БЛ.4-UJA-31-ЧР-014, изм.2"]
["\n4BRG01GE030","1UBR07 253",null,null,null,null,"ПР",6,null,6,null,null,null,null,null,null,null,"4BMS00GE021","Шинка управления  ЕС силовой сборки 4BMS00GE020","Шинка управления  ЕС силовой сборки 4BMS00GE020  4BMS00GE021","БЛ.4-UJA-31-ЧР-014, изм.2","\n4BRG01GE030_ПР_6_6________4BMS00GE021_Шинка управления  ЕС силовой сборки 4BMS00GE020_Шинка управления  ЕС силовой сборки 4BMS00GE020  4BMS00GE021_БЛ.4-UJA-31-ЧР-014, изм.2","\n4BRG01GE030_ПР_6_6________4BMS00GE021_Шинка управления  ЕС силовой сборки 4BMS00GE020_Шинка управления  ЕС силовой сборки 4BMS00GE020  4BMS00GE021_БЛ.4-UJA-31-ЧР-014, изм.2"]
["\n4BRG01GE030","1UBR07 253",null,null,null,null,"ПР",6,null,6,null,"G61C04","4A",1,"C",null,220,"4BMS00GE011","Шинка управления  ЕС силовой сборки 4BMS00GE010","Шинка управления  ЕС силовой сборки 4BMS00GE010  4BMS00GE011","БЛ.4-UJA-31-ЧР-014, изм.2","\n4BRG01GE030_ПР_6_6__G61C04_4A_1_C__220_4BMS00GE011_Шинка управления  ЕС силовой сборки 4BMS00GE010_Шинка управления  ЕС силовой сборки 4BMS00GE010  4BMS00GE011_БЛ.4-UJA-31-ЧР-014, изм.2","\n4BRG01GE030_ПР_6_6__G61C04_4A_1_C__220_4BMS00GE011_Шинка управления  ЕС силовой сборки 4BMS00GE010_Шинка управления  ЕС силовой сборки 4BMS00GE010  4BMS00GE011_БЛ.4-UJA-31-ЧР-014, изм.2"]
["\n4BRG01GE030","1UBR07 253",null,null,null,null,"ПР",7,null,7,null,"G61C04","4A",1,"C",null,220,"4BFN01","Шинка управления ЕС секции  4BFN","Шинка управления ЕС секции  4BFN \n 4BFN01","БЛ.4-UJA-31-ЧР-014, изм.2","\n4BRG01GE030_ПР_7_7__G61C04_4A_1_C__220_4BFN01_Шинка управления ЕС секции  4BFN_Шинка управления ЕС секции  4BFN \n 4BFN01_БЛ.4-UJA-31-ЧР-014, изм.2","\n4BRG01GE030_ПР_7_7__G61C04_4A_1_C__220_4BFN01_Шинка управления ЕС секции  4BFN_Шинка управления ЕС секции  4BFN \n 4BFN01_БЛ.4-UJA-31-ЧР-014, изм.2"]
["\n4BRG01GE030","1UBR07 253",null,null,null,null,"ПР",8,null,8,null,"G61C04","4A",1,"C",null,220,"4BFQ01","Шинка управления ЕС секции  4BFQ","Шинка управления ЕС секции  4BFQ  \n4BFN01","БЛ.4-UJA-31-ЧР-014, изм.2","\n4BRG01GE030_ПР_8_8__G61C04_4A_1_C__220_4BFQ01_Шинка управления ЕС секции  4BFQ_Шинка управления ЕС секции  4BFQ  \n4BFN01_БЛ.4-UJA-31-ЧР-014, изм.2","\n4BRG01GE030_ПР_8_8__G61C04_4A_1_C__220_4BFQ01_Шинка управления ЕС секции  4BFQ_Шинка управления ЕС секции  4BFQ  \n4BFN01_БЛ.4-UJA-31-ЧР-014, изм.2"]
["\n4BRG01GE030","1UBR07 253",null,null,null,null,"ПР",9,null,"9/1",null,"G61C04","4A",1,"C",null,220,"4BMS00GE031","Шинка управления  ЕС силовой сборки 4BMS00GE030","Шинка управления  ЕС силовой сборки 4BMS00GE030  4BMS00GE031","БЛ.4-UJA-31-ЧР-014, изм.2","\n4BRG01GE030_ПР_9_9/1__G61C04_4A_1_C__220_4BMS00GE031_Шинка управления  ЕС силовой сборки 4BMS00GE030_Шинка управления  ЕС силовой сборки 4BMS00GE030  4BMS00GE031_БЛ.4-UJA-31-ЧР-014, изм.2","\n4BRG01GE030_ПР_9_9/1__G61C04_4A_1_C__220_4BMS00GE031_Шинка управления  ЕС силовой сборки 4BMS00GE030_Шинка управления  ЕС силовой сборки 4BMS00GE030  4BMS00GE031_БЛ.4-UJA-31-ЧР-014, изм.2"]
["\n4BRG01GE030","1UBR07 253",null,null,null,null,"ПР",9,null,"9/2",null,"G61C04",null,null,null,null,null,"4BMS00GE041","Шинка управления  ЕС силовой сборки 4BMS00GE040","Шинка управления  ЕС силовой сборки 4BMS00GE040 4BMS00GE041","БЛ.4-UJA-31-ЧР-014, изм.2","\n4BRG01GE030_ПР_9_9/2__G61C04______4BMS00GE041_Шинка управления  ЕС силовой сборки 4BMS00GE040_Шинка управления  ЕС силовой сборки 4BMS00GE040 4BMS00GE041_БЛ.4-UJA-31-ЧР-014, изм.2","\n4BRG01GE030_ПР_9_9/2__G61C04______4BMS00GE041_Шинка управления  ЕС силовой сборки 4BMS00GE040_Шинка управления  ЕС силовой сборки 4BMS00GE040 4BMS00GE041_БЛ.4-UJA-31-ЧР-014, изм.2"]